bitfinex/quotes_SOLUSD_20260305
["timestamp","ask_amount","ask_price","bid_price","bid_amount"]
[1772690066311,1.46339331,90.228,90.174,3.69383402]
[1772690066312,1.46339331,90.226,90.182,1.427856]
[1772690068319,1.46339331,90.226,90.183,38.80997526]
[1772690068525,1.46339331,90.226,90.184,1.38815254]
[1772690068719,1.3957693,90.224,90.184,1.38815254]
[1772690070927,1.3957693,90.224,90.186,1.38815254]
[1772690071924,0.2,90.23,90.187,1.38815254]
[1772690072103,1e-08,90.23,90.188,1.38815254]
[1772690074028,1.3957693,90.229,90.19,1.38815254]
[1772690074839,1.3957693,90.228,90.179,1.38815254]
[1772690075331,1.3957693,90.227,90.179,1.38815254]
[1772690075712,1e-08,90.23,90.175,94.26115885]
[1772690075927,1e-08,90.23,90.179,1.38815254]
[1772690076128,1e-08,90.23,90.182,1.38815254]
[1772690077732,1e-08,90.23,90.184,1.38815254]
[1772690078934,1e-08,90.23,90.186,1.38815254]
[1772690082635,1e-08,90.23,90.188,1.38815254]
[1772690085235,1e-08,90.23,90.19,1.38815254]
[1772690089050,1e-08,90.23,90.195,1.47913212]
[1772690089527,1.36562369,90.268,90.197,1.47913212]
[1772690089929,1.36562369,90.268,90.199,1.47913212]
[1772690090842,1.36090569,90.267,90.204,1.47913212]
[1772690092447,1.35163179,90.265,90.206,1.47913212]
[1772690094955,1.34268091,90.263,90.208,1.47913212]
[1772690095254,1.34268091,90.259,90.208,1.47913212]
[1772690097862,4.2427951,90.22,90.173,11.08976358]
[1772690098045,4.2427951,90.19,90.154,1.50682132]
[1772690098358,3.69383402,90.246,90.069,44.41005589]
[1772690098359,4.2427951,90.18,90.099,1.50682132]
[1772690098652,4.2427951,90.18,90.111,1.50682132]
[1772690098838,4.2427951,90.17,90.111,1.50682132]
[1772690099641,3.69383402,90.197,90.111,1.50682132]
[1772690099642,4.2427951,90.15,90.111,1.50682132]
[1772690099853,11.09151609,90.159,90.112,11.09730113]
[1772690100046,11.09151609,90.159,90.113,1.50682132]
[1772690100746,11.08794961,90.188,90.113,1.50682132]
[1772690101741,38.80782365,90.188,90.113,1.50682132]
[1772690101960,38.80782365,90.188,90.115,1.50682132]
[1772690102138,11.08794961,90.188,90.118,1.50682132]
[1772690103546,11.08794961,90.188,90.123,1.50682132]
[1772690104546,11.08794961,90.188,90.125,1.50682132]
[1772690106659,11.08659741,90.199,90.127,1.50682132]
[1772690106861,1.10884414,90.198,90.127,1.50682132]
[1772690107343,1.10884414,90.198,90.132,1.50682132]
[1772690108542,1.10884414,90.198,90.134,1.50682132]
[1772690108865,4.2427951,90.18,90.134,1.50682132]
[1772690109558,4.2427951,90.19,90.134,1.50682132]
[1772690109746,1.10884414,90.189,90.134,1.50682132]
[1772690110453,1.10884414,90.196,90.134,1.50682132]
[1772690110656,1.10884414,90.196,90.139,1.50682132]
[1772690110959,1.10884414,90.203,90.139,1.50682132]
[1772690111151,7.02327356,90.205,90.139,1.50682132]
[1772690112265,1.10884414,90.204,90.139,1.50682132]
[1772690115643,1.10884414,90.204,90.14,94.29775903]
[1772690115947,1.10884414,90.204,90.144,1.50682132]
[1772690116145,12.19493632,90.204,90.144,1.50682132]
[1772690117763,12.19493632,90.204,90.146,1.50682132]
[1772690118083,4.2427951,90.2,90.146,1.50682132]
[1772690118254,1.10884414,90.199,90.146,1.50682132]
[1772690119264,1.10884414,90.203,90.146,1.50682132]
[1772690122072,11.08622868,90.202,90.148,1.50682132]
[1772690122246,1.10884414,90.201,90.148,1.50682132]
[1772690122654,1.10884414,90.204,90.148,1.50682132]
[1772690123770,1.10884414,90.204,90.149,94.28834484]
[1772690124068,7.02327356,90.205,90.153,1.50682132]
[1772690124257,7.02327356,90.205,90.154,1.50682132]
[1772690125160,7.02327356,90.205,90.156,1.50682132]
[1772690127485,7.02327356,90.205,90.158,1.50682132]
[1772690130778,7.02327356,90.205,90.16,1.50682132]
[1772690133363,7.02327356,90.205,90.162,1.50682132]
[1772690134688,7.02327356,90.205,90.164,1.50682132]
[1772690136760,7.02327356,90.205,90.166,1.50682132]
[1772690136984,1.10884414,90.204,90.165,11.09077801]
[1772690137583,4.2427951,90.19,90.147,11.09299255]
[1772690138790,11.08782667,90.189,90.145,27.73304896]
[1772690139299,11.08659741,90.199,90.146,1.50682132]
[1772690139595,7.02327356,90.205,90.146,1.50682132]
[1772690139596,1.10884414,90.198,90.146,1.50682132]
[1772690139973,7.02327356,90.205,90.149,1.50682132]
[1772690140291,7.02327356,90.205,90.151,1.50682132]
[1772690140878,7.02327356,90.205,90.152,38.8233206]
[1772690141070,7.02327356,90.205,90.153,1.50682132]
[1772690141871,11.0842437,90.219,90.153,1.50682132]
[1772690142576,27.70587537,90.234,90.155,1.50682132]
[1772690144503,38.79018939,90.229,90.157,1.50682132]
[1772690145384,4.2427951,90.22,90.157,1.50682132]
[1772690148306,38.79448896,90.219,90.159,1.50682132]
[1772690150212,11.0841397,90.219,90.159,1.50682132]
[1772690150408,11.0841397,90.219,90.15,3.69383402]
[1772690150409,4.2427951,90.2,90.16,11.09139307]
[1772690151180,4.2427951,90.2,90.16,12.59821439]
[1772690151574,104.9,90.228,90.161,1.50682132]
[1772690151801,4.2427951,90.22,90.161,1.50682132]
[1772690152001,4.2427951,90.21,90.161,1.50682132]
[1772690152677,38.79878947,90.209,90.162,11.09114704]
[1772690152873,38.79878947,90.209,90.162,12.59796836]
[1772690153074,38.79878947,90.209,90.163,1.50682132]
[1772690154796,38.79878947,90.209,90.164,11.09090102]
[1772690155003,38.79878947,90.209,90.164,12.59772234]
[1772690157684,4.2427951,90.2,90.145,1.50682132]
[1772690158508,4.24916855,90.2,90.145,1.50682132]
[1772690159202,38.79878947,90.209,90.145,1.50682132]
[1772690160400,38.79878947,90.209,90.147,1.50682132]
[1772690162302,38.79878947,90.209,90.119,4.82477569]
[1772690162303,11.08536842,90.209,90.149,1.50682132]
[1772690162487,27.7099145,90.221,90.149,1.50682132]
[1772690162691,11.0841397,90.219,90.149,1.50682132]
[1772690164504,4.24916855,90.23,90.151,1.50682132]
[1772690165618,11.08291125,90.229,90.153,1.50682132]
[1772690166906,38.78675043,90.237,90.155,1.50682132]
[1772690167112,4.24916855,90.23,90.155,1.50682132]
[1772690167300,4.24916855,90.22,90.155,1.50682132]
[1772690167996,94.19639392,90.237,90.155,1.50682132]
[1772690167997,4.24916855,90.21,90.155,1.50682132]
[1772690169001,11.08536842,90.209,90.157,1.50682132]
[1772690171002,4.24916855,90.22,90.158,38.82073692]
[1772690171207,4.24916855,90.22,90.159,1.50682132]
[1772690171613,4.24916855,90.19,90.132,1.50682132]
[1772690173414,4.24916855,90.2,90.134,1.50682132]
[1772690173791,4.24916855,90.21,90.134,1.50682132]
[1772690174198,4.24916855,90.22,90.138,1.50682132]
[1772690174419,4.24916855,90.22,90.14,1.50682132]
[1772690175635,4.24916855,90.22,90.142,1.50682132]
[1772690175636,38.79448896,90.219,90.142,1.50682132]
[1772690175817,38.79448896,90.219,90.145,1.50682132]
[1772690177296,4.24916855,90.21,90.146,38.82590464]
[1772690177518,4.24916855,90.21,90.147,1.50682132]
[1772690179616,11.08536842,90.209,90.149,1.50682132]
[1772690182017,11.08536842,90.209,90.151,1.50682132]
[1772690185114,27.71209984,90.214,90.153,1.50682132]
[1772690186723,4.24916855,90.21,90.154,38.82245934]
[1772690186922,4.24916855,90.21,90.155,1.50682132]
[1772690187128,4.24916855,90.2,90.155,1.50682132]
[1772690188314,4.24916855,90.21,90.155,1.50682132]
[1772690190821,38.79878947,90.209,90.157,1.50682132]
[1772690193928,4.24916855,90.22,90.159,1.50682132]
[1772690196333,38.79448896,90.219,90.161,1.50682132]
[1772690199835,4.24916855,90.21,90.163,1.50682132]
[1772690200221,4.24916855,90.2,90.163,1.50682132]
[1772690200421,4.24916855,90.2,90.158,1.50682132]
[1772690201831,38.80309094,90.199,90.15,1.50682132]
[1772690202527,11.08569254,90.207,90.15,1.50682132]
[1772690205914,38.7945535,90.219,90.152,1.50682132]
[1772690207730,38.7945535,90.219,90.154,3.69383402]
[1772690207930,38.7945535,90.219,90.155,1.50682132]
[1772690208131,38.7945535,90.219,90.157,1.50682132]
[1772690208437,4.24916855,90.21,90.157,1.50682132]
[1772690212042,38.79878947,90.209,90.159,1.50682132]
[1772690214350,38.79878947,90.209,90.161,1.50682132]
[1772690218051,4.24916855,90.22,90.163,1.50682132]
[1772690218443,4.2480126,90.22,90.163,1.50682132]
[1772690220545,55.41545341,90.228,90.164,11.09090102]
[1772690220742,4.2480126,90.22,90.165,1.50682132]
[1772690222058,38.79448896,90.219,90.167,1.50682132]
[1772690224645,38.79448896,90.219,90.169,1.50682132]
[1772690226141,4.2480126,90.21,90.171,1.50682132]
[1772690227362,4.2480126,90.22,90.173,1.50682132]
[1772690228260,4.2480126,90.21,90.173,1.50682132]
[1772690228762,38.78761012,90.235,90.173,1.50682132]
[1772690229149,4.2480126,90.22,90.173,1.50682132]
[1772690229354,4.2480126,90.21,90.175,1.50682132]
[1772690229550,4.2480126,90.21,90.17,11.09011719]
[1772690229752,4.2480126,90.21,90.171,1.50682132]
[1772690230351,4.2480126,90.22,90.171,1.50682132]
[1772690230551,4.2480126,90.21,90.171,1.50682132]
[1772690231155,4.2480126,90.23,90.171,1.50682132]
[1772690231377,4.2480126,90.22,90.173,1.50682132]
[1772690233675,38.79448896,90.219,90.175,1.50682132]
[1772690236272,38.79448896,90.219,90.177,1.50682132]
[1772690239158,38.79448896,90.219,90.179,1.50682132]
[1772690242268,4.2480126,90.21,90.173,1.50682132]
[1772690244163,38.79878947,90.209,90.173,1.50682132]
[1772690247066,4.2480126,90.2,90.168,1.50682132]
[1772690249766,11.08659741,90.199,90.169,1.50682132]
[1772690250886,38.80309094,90.199,90.169,1.50682132]
[1772690251785,4.2480126,90.19,90.15,1.50682132]
[1772690257090,38.80739335,90.189,90.152,1.50682132]
[1772690258695,11.08659741,90.199,90.152,1.50682132]
[1772690258986,11.08536842,90.209,90.152,1.50682132]
[1772690259168,11.0841397,90.219,90.154,1.50682132]
[1772690260788,11.08291125,90.229,90.156,1.50682132]
[1772690261368,4.2480126,90.22,90.156,1.50682132]
[1772690264401,38.79018939,90.229,90.135,3.69383402]
[1772690264402,4.2480126,90.2,90.158,1.50682132]
[1772690265884,4.2480126,90.19,90.158,1.50682132]
[1772690266194,4.2480126,90.2,90.158,1.50682132]
[1772690266494,11.08659741,90.199,90.16,1.50682132]
[1772690268893,11.08659741,90.199,90.162,1.50682132]
[1772690271900,11.08659741,90.199,90.164,1.50682132]
[1772690272581,38.80309094,90.199,90.164,1.50682132]
[1772690278502,4.24904562,90.2,90.164,1.50682132]
[1772690280094,4.24904562,90.2,90.125,3.69383402]
[1772690280095,4.24904562,90.22,90.166,1.50682132]
[1772690280282,38.79190911,90.225,90.166,1.50682132]
[1772690280713,27.70850651,90.225,90.168,1.50682132]
[1772690282807,27.70850651,90.225,90.17,1.50682132]
[1772690283004,4.24904562,90.22,90.17,1.50682132]
[1772690283899,4.24904562,90.21,90.17,1.50682132]
[1772690284100,4.24904562,90.2,90.17,1.50682132]
[1772690284607,4.24904562,90.21,90.17,1.50682132]
[1772690288011,38.79878947,90.209,90.17,1.50682132]
[1772690288505,4.24904562,90.2,90.17,1.50682132]
[1772690288715,38.79878947,90.209,90.17,1.50682132]
[1772690293914,38.79878947,90.209,90.172,1.50682132]
[1772690296518,4.24904562,90.19,90.147,1.50682132]
[1772690296717,4.24904562,90.18,90.134,1.50682132]
[1772690296918,38.79878947,90.209,90.134,1.50682132]
[1772690296919,4.24904562,90.17,90.134,1.50682132]
[1772690297308,4.24904562,90.16,90.128,1.50682132]
[1772690297510,3.69383402,90.197,90.065,1.50682132]
[1772690297511,4.24904562,90.14,90.065,1.50682132]
[1772690297700,4.24904562,90.11,90.084,1.50682132]
[1772690297902,1.50682131,90.09,90.082,1.50682132]
[1772690298100,1.50682131,90.09,90.065,1.50682132]
[1772690298299,11.10013431,90.089,90.065,1.50682132]
[1772690298701,1.50682131,90.09,90.07,1.70682132]
[1772690299219,11.09832249,90.104,90.071,1.50682132]
[1772690299720,11.09832249,90.104,90.072,1.50682132]
[1772690301596,11.09832249,90.104,90.074,1.50682132]
[1772690301799,11.09663212,90.118,90.074,1.50682132]
[1772690302418,27.73657917,90.134,90.076,1.50682132]
[1772690302912,4.24904562,90.13,90.076,1.50682132]
[1772690303516,11.09520797,90.129,90.078,1.50682132]
[1772690304115,38.83322791,90.129,90.078,1.50682132]
[1772690305323,11.09520797,90.129,90.078,1.50682132]
[1772690306002,4.24904562,90.16,90.08,1.50682132]
[1772690307107,4.24904562,90.13,90.08,1.50682132]
[1772690308128,11.09520797,90.129,90.082,1.50682132]
[1772690308429,38.83322791,90.129,90.082,1.50682132]
[1772690310225,4.24904562,90.2,90.084,1.50682132]
[1772690310226,55.44524426,90.18,90.084,1.50682132]
[1772690310430,11.08905621,90.179,90.087,1.50682132]
[1772690310625,4.24904562,90.17,90.087,1.50682132]
[1772690311333,4.24904562,90.17,90.083,94.35742591]
[1772690311334,27.72503034,90.172,90.092,1.50682132]
[1772690312524,4.24904562,90.18,90.094,1.50682132]
[1772690314835,38.81169673,90.179,90.098,3.69383402]
[1772690315135,38.81169673,90.179,90.099,1.50682132]
[1772690316830,38.81169673,90.179,90.104,1.50682132]
[1772690317032,4.24904562,90.17,90.104,1.50682132]
[1772690320037,38.81600105,90.169,90.106,1.50682132]
[1772690322141,4.24904562,90.16,90.108,1.50682132]
[1772690322935,4.24904562,90.17,90.108,1.50682132]
[1772690323347,4.24904562,90.16,90.108,1.50682132]
[1772690324425,38.82030633,90.159,90.11,1.50682132]
[1772690325429,38.82030633,90.159,90.081,55.5053186]
[1772690325430,4.24904562,90.15,90.099,1.50682132]
[1772690325717,4.24904562,90.14,90.099,1.50682132]
[1772690327931,38.82891976,90.139,90.099,1.50682132]
[1772690329554,38.82891976,90.139,90.066,3.69383402]
[1772690329555,4.24904562,90.13,90.078,1.50682132]
[1772690329723,38.82891976,90.139,90.078,1.50682132]
[1772690329923,4.24904562,90.12,90.078,1.50682132]
[1772690330641,38.82891976,90.139,90.078,1.50682132]
[1772690330642,4.24904562,90.11,90.078,1.50682132]
[1772690330944,4.24904562,90.11,90.071,1.50682132]
[1772690331537,38.84184708,90.109,90.063,12.61008355]
[1772690331840,38.84184708,90.109,90.069,1.50682132]
[1772690332046,38.84184708,90.109,90.07,1.70682132]
[1772690332548,4.24904562,90.1,90.07,1.70682132]
[1772690332844,4.24904562,90.1,90.07,0.2]
[1772690334250,38.8461581,90.099,90.07,0.2]
[1772690334541,38.8461581,90.099,90.07,1.70682132]
[1772690335453,38.8461581,90.099,90.07,0.2]
[1772690335948,4.24904562,90.09,90.027,49.92]
[1772690336249,4.24904562,90.08,90.047,1.50682132]
[1772690337651,38.85047008,90.089,90.05,1.60682132]
[1772690340447,3.69383402,90.107,90.05,0.1]
[1772690340639,4.25619037,90.14,90.054,1.50682132]
[1772690340953,4.25619037,90.12,90.054,1.50682132]
[1772690341153,4.25619037,90.11,90.054,1.50682132]
[1772690341445,4.25619037,90.1,90.054,1.50682132]
[1772690341848,3.69383402,90.143,90.054,1.50682132]
[1772690342036,4.25619037,90.11,90.054,1.50682132]
[1772690342446,38.82633534,90.145,90.056,1.50682132]
[1772690342749,38.82633534,90.145,90.059,1.50682132]
[1772690342750,4.25619037,90.13,90.059,1.50682132]
[1772690342951,38.82633534,90.145,90.059,1.50682132]
[1772690342952,4.25619037,90.12,90.059,1.50682132]
[1772690343338,4.25619037,90.13,90.059,1.50682132]
[1772690345447,11.09520797,90.129,90.061,1.50682132]
[1772690345644,11.09090102,90.164,90.064,1.50682132]
[1772690345841,3.69383402,90.161,90.064,1.50682132]
[1772690346044,4.25619037,90.15,90.064,1.50682132]
[1772690346455,4.25619037,90.14,90.064,1.50682132]
[1772690347956,4.25619037,90.14,90.069,1.50682132]
[1772690348657,4.25619037,90.15,90.069,1.50682132]
[1772690348856,4.25619037,90.14,90.069,1.50682132]
[1772690350052,11.09397707,90.139,90.071,1.50682132]
[1772690350247,4.25619037,90.13,90.071,1.50682132]
[1772690350834,3.69383402,90.157,90.071,1.50682132]
[1772690350835,11.09188517,90.156,90.071,1.50682132]
[1772690351042,11.09188517,90.156,90.082,1.50682132]
[1772690351935,38.82159811,90.156,90.082,1.50682132]
[1772690353662,4.25619037,90.16,90.084,1.50682132]
[1772690354951,11.08991704,90.172,90.091,1.50682132]
[1772690355552,15.34151418,90.21,90.096,1.50682132]
[1772690355749,43.05462802,90.21,90.121,3.69383402]
[1772690355953,43.05462802,90.21,90.122,1.50682132]
[1772690356147,4.25619037,90.2,90.122,1.50682132]
[1772690356365,43.05462802,90.21,90.122,1.50682132]
[1772690356965,43.05462802,90.21,90.127,1.50682132]
[1772690357143,4.25619037,90.2,90.127,1.50682132]
[1772690357344,43.05462802,90.21,90.127,1.50682132]
[1772690358664,4.25619037,90.2,90.127,1.50682132]
[1772690359048,11.08659741,90.199,90.132,1.50682132]
[1772690360146,11.08659741,90.199,90.134,1.50682132]
[1772690360751,14.77704808,90.227,90.134,1.50682132]
[1772690360948,11.08321406,90.227,90.139,1.50682132]
[1772690361566,11.08321406,90.227,90.141,1.50682132]
[1772690362565,11.08321406,90.227,90.145,3.69383402]
[1772690362764,11.08321406,90.227,90.146,1.50682132]
[1772690362965,11.08291125,90.229,90.151,1.50682132]
[1772690366171,4.25619037,90.22,90.156,1.50682132]
[1772690366976,38.79018939,90.229,90.156,1.50682132]
[1772690368171,38.79018939,90.229,90.158,1.50682132]
[1772690369555,4.25619037,90.22,90.158,1.50682132]
[1772690371274,38.79448896,90.219,90.16,1.50682132]
[1772690371570,4.25619037,90.21,90.16,1.50682132]
[1772690371771,4.25619037,90.2,90.16,1.50682132]
[1772690372363,4.25619037,90.21,90.16,1.50682132]
[1772690372873,4.25619037,90.2,90.151,1.50682132]
[1772690373077,4.25619037,90.18,90.115,1.50682132]
[1772690373266,4.25619037,90.18,90.122,1.50682132]
[1772690374665,4.25619037,90.2,90.122,1.50682132]
[1772690374863,4.25619037,90.18,90.124,1.50682132]
[1772690375767,4.25619037,90.17,90.124,1.50682132]
[1772690376486,9.11144119,90.17,90.124,1.50682132]
[1772690377080,11.09028601,90.169,90.126,1.50682132]
[1772690380387,11.08905621,90.179,90.128,1.50682132]
[1772690381287,55.42929992,90.205,90.128,1.50682132]
[1772690381288,55.41765418,90.224,90.128,1.50682132]
[1772690381490,9.11144119,90.2,90.128,1.50682132]
[1772690381684,9.11144119,90.19,90.128,1.50682132]
[1772690381886,9.11144119,90.2,90.128,1.50682132]
[1772690382186,55.41765418,90.224,90.128,1.50682132]
[1772690382393,11.08659741,90.199,90.13,1.50682132]
[1772690383166,9.11144119,90.21,90.13,1.50682132]
[1772690383774,9.11144119,90.19,90.13,1.50682132]
[1772690384491,9.11144119,90.19,90.132,1.50682132]
[1772690384688,9.11144119,90.18,90.132,1.50682132]
[1772690385393,9.11144119,90.19,90.132,1.50682132]
[1772690386872,9.11144119,90.19,90.134,1.50682132]
[1772690388987,9.11144119,90.17,90.135,11.0944694]
[1772690389185,9.11144119,90.17,90.136,1.50682132]
[1772690389778,9.11144119,90.18,90.136,1.50682132]
[1772690390988,9.11144119,90.17,90.136,1.50682132]
[1772690391585,9.11144119,90.18,90.138,1.50682132]
[1772690391986,9.11144119,90.17,90.137,11.09422323]
[1772690392678,3.69383402,90.203,90.123,1.50682132]
[1772690392679,9.11144119,90.16,90.123,1.50682132]
[1772690394786,11.09151609,90.159,90.124,11.09582353]
[1772690395293,9.11144119,90.15,90.119,11.09635304]
[1772690396486,3.69383402,90.187,90.12,1.50682132]
[1772690396685,9.11144119,90.21,90.123,1.50682132]
[1772690396886,38.79878947,90.209,90.125,1.50682132]
[1772690397074,9.11144119,90.2,90.125,1.50682132]
[1772690398403,38.79878947,90.209,90.125,1.50682132]
[1772690398698,11.08536842,90.209,90.128,1.50682132]
[1772690399095,4.24825747,90.21,90.133,1.50682132]
[1772690400388,31.9585148,90.22,90.133,1.50682132]
[1772690400599,31.95755674,90.22,90.133,1.50682132]
[1772690401097,11.08327976,90.226,90.144,1.50682132]
[1772690401277,4.24729941,90.22,90.144,1.50682132]
[1772690401896,11.08327976,90.226,90.144,1.50682132]
[1772690402106,4.24729941,90.22,90.144,1.50682132]
[1772690403506,11.08327976,90.226,90.146,1.50682132]
[1772690404401,4.24729941,90.2,90.146,1.50682132]
[1772690405098,4.24729941,90.18,90.146,1.50682132]
[1772690405486,11.08905621,90.179,90.147,11.09299255]
[1772690405698,11.08905621,90.179,90.148,1.50682132]
[1772690405888,11.08905621,90.179,90.135,1.50682132]
[1772690406093,4.24729941,90.17,90.136,1.50682132]
[1772690406289,11.08905621,90.179,90.136,1.50682132]
[1772690407587,9.10971936,90.17,90.137,12.60104455]
[1772690408905,11.09028601,90.169,90.137,12.60104455]
[1772690409610,38.81600105,90.169,90.131,1.50682132]
[1772690410103,9.10971936,90.16,90.125,11.09560243]
[1772690410404,9.10971936,90.15,90.119,11.09635281]
[1772690411112,11.09274645,90.149,90.112,1.50682132]
[1772690412016,11.09274645,90.149,90.061,5.78613021]
[1772690412017,66.55647871,90.149,90.061,5.78613021]
[1772690412192,9.10971936,90.09,90.062,1.50682132]
[1772690412391,3.69383402,90.128,90.063,1.50682132]
[1772690412605,9.10971936,90.09,90.063,1.50682132]
[1772690412805,9.10971936,90.12,90.063,1.50682132]
[1772690413008,9.10971936,90.12,90.05,0.1]
[1772690413009,11.09590711,90.124,90.065,1.50682132]
[1772690413512,9.10971936,90.12,90.065,1.50682132]
[1772690415303,9.10971936,90.1,90.067,1.50682132]
[1772690416091,38.83753703,90.119,90.067,1.50682132]
[1772690416710,9.10971936,90.11,90.067,1.50682132]
[1772690417111,38.83753703,90.119,90.067,1.50682132]
[1772690417407,11.09767059,90.109,90.069,1.50682132]
[1772690417591,9.10971936,90.1,90.069,1.50682132]
[1772690417792,9.10971936,90.09,90.06,1.50682132]
[1772690418807,20.20981806,90.09,90.06,1.50682132]
[1772690420497,9.10971936,90.08,90.05,1.60682132]
[1772690421009,9.10971936,90.09,90.05,1.60682132]
[1772690421715,9.10971936,90.09,90.051,1.50682132]
[1772690423010,11.10013431,90.089,90.053,1.50682132]
[1772690423201,36.85666719,90.1,90.053,1.50682132]
[1772690423202,11.09948766,90.095,90.053,1.50682132]
[1772690423399,11.09767059,90.109,90.053,1.50682132]
[1772690423611,11.09594665,90.123,90.056,1.50682132]
[1772690423792,18.13062183,90.131,90.056,1.50682132]
[1772690424613,7.03564415,90.131,90.056,1.50682132]
[1772690424815,7.03564415,90.131,90.069,1.50682132]
[1772690425018,7.03564415,90.131,90.074,1.50682132]
[1772690425921,11.09353243,90.143,90.074,1.50682132]
[1772690427125,27.72922866,90.158,90.076,1.50682132]
[1772690430611,9.10971936,90.14,90.078,1.50682132]
[1772690431026,9.10971936,90.13,90.078,1.50682132]
[1772690431514,9.10971936,90.14,90.078,1.50682132]
[1772690432322,9.10971936,90.13,90.078,1.50682132]
[1772690433017,11.09520797,90.129,90.08,1.50682132]
[1772690433930,38.83322791,90.129,90.08,1.50682132]
[1772690434225,9.10971936,90.11,90.079,11.10136657]
[1772690434436,9.10971936,90.11,90.073,12.60884423]
[1772690435121,11.09767059,90.109,90.074,1.50682132]
[1772690436333,27.74280634,90.114,90.074,1.50682132]
[1772690437731,27.74280634,90.114,90.076,1.50682132]
[1772690438515,9.10971936,90.14,90.076,1.50682132]
[1772690438711,44.34022668,90.212,90.076,1.50682132]
[1772690438712,38.82159811,90.156,90.076,1.50682132]
[1772690439237,9.10971936,90.15,90.076,1.50682132]
[1772690439733,38.82461258,90.149,90.078,1.50682132]
[1772690440716,9.10971936,90.14,90.078,1.50682132]
[1772690441815,38.82891976,90.139,90.08,1.50682132]
[1772690442232,9.10971936,90.13,90.08,1.50682132]
[1772690442820,9.10971936,90.12,90.08,1.50682132]
[1772690443717,9.10971936,90.13,90.08,1.50682132]
[1772690444128,38.83322791,90.129,90.082,1.50682132]
[1772690444725,9.10971936,90.11,90.07,11.10247585]
[1772690444926,9.10971936,90.11,90.071,1.50682132]
[1772690445522,9.10971936,90.12,90.071,1.50682132]
[1772690445721,9.10971936,90.11,90.071,1.50682132]
[1772690446040,9.10971936,90.12,90.071,1.50682132]
[1772690448045,38.83753703,90.119,90.071,1.50682132]
[1772690448217,38.83753703,90.119,90.073,1.50682132]
[1772690450435,9.10971936,90.11,90.073,1.50682132]
[1772690452448,9.10971936,90.1,90.064,1.50682132]
[1772690453961,38.84184708,90.109,90.064,1.50682132]
[1772690454641,9.10971936,90.11,90.066,1.50682132]
[1772690457429,38.84184708,90.109,90.066,1.50682132]
[1772690458761,38.83667513,90.121,90.068,1.50682132]
[1772690458960,9.10971936,90.11,90.068,1.50682132]
[1772690460435,9.12336939,90.11,90.068,1.50682132]
[1772690460936,11.09767059,90.109,90.07,1.50682132]
[1772690461562,38.84184708,90.109,90.07,1.50682132]
[1772690462841,9.12336939,90.1,90.07,1.50682132]
[1772690463358,38.84184708,90.109,90.07,1.50682132]
[1772690463535,1.20720757,90.099,90.039,27.76573653]
[1772690464344,1.20720757,90.099,90.053,11.10450149]
[1772690465148,104.9,90.123,90.034,55.53449458]
[1772690465149,1.20836386,90.097,90.034,55.53449458]
[1772690465557,1.20836386,90.097,90.051,1.34223854]
[1772690466742,38.84658926,90.098,90.051,1.34223854]
[1772690466743,11.0990255,90.098,90.051,1.34223854]
[1772690467152,12.30966681,90.098,90.053,1.34223854]
[1772690467354,1.21178009,90.097,90.053,1.34223854]
[1772690470455,1.2150699,90.095,90.055,1.34223854]
[1772690471647,1.21613772,90.089,90.055,1.34223854]
[1772690472754,1.21719322,90.087,90.055,1.34223854]
[1772690473266,1.21825712,90.079,90.049,1.34223854]
[1772690474460,1.21927742,90.077,90.051,1.34223854]
[1772690476374,1.21927742,90.077,90.05,0.1]
[1772690476669,1.22130601,90.069,90.05,0.1]
[1772690478380,1.22329221,90.059,90.021,1.34223854]
[1772690478666,1.22329221,90.049,90.021,1.34223854]
[1772690478967,38.86384329,90.058,89.99,0.1]
[1772690478968,1.22424992,90.039,90.014,1.35373757]
[1772690480273,1.22424992,90.039,90.007,1.35373757]
[1772690480575,1.22617848,90.037,90.007,1.35373757]
[1772690480956,1.22617848,90.037,90.011,1.35373757]
[1772690481557,11.10666844,90.036,90.011,1.35373757]
[1772690482465,11.10666844,90.036,89.97,0.1]
[1772690482466,1.12803051,90.019,89.97,0.1]
[1772690482657,1.12803051,90.009,89.981,1.35373757]
[1772690482862,1.12803051,90.009,89.98,1.45373757]
[1772690483573,12.23914709,90.008,89.98,1.45373757]
[1772690483779,1.12902355,90.007,89.98,0.1]
[1772690485068,38.8854324,90.008,89.98,0.1]
[1772690485069,11.11012354,90.008,89.981,1.35373757]
[1772690485384,12.24113525,90.008,89.981,1.35373757]
[1772690485576,11.11012354,90.008,89.981,1.35373757]
[1772690485880,11.10949708,90.014,89.981,1.35373757]
[1772690486873,27.77202968,90.019,89.983,1.32834076]
[1772690487074,1.13292091,90.024,89.983,1.32834076]
[1772690487472,38.87808941,90.025,89.983,1.32834076]
[1772690487984,1.13386816,90.024,89.983,1.32834076]
[1772690489082,1.1348059,90.019,89.983,1.32834076]
[1772690489776,1.1357134,90.009,89.983,1.32834076]
[1772690490284,1.13660679,90.016,89.983,1.32834076]
[1772690490661,1.13660679,90.016,89.983,12.44148258]
[1772690490936,11.10827233,90.023,89.984,1.32834076]
[1772690491181,11.10716189,90.032,89.986,1.32834076]
[1772690491491,1.13748971,90.013,89.982,1.32834076]
[1772690492068,5.39573273,90.02,89.982,1.32834076]
[1772690492286,1.13748971,90.019,89.982,1.32834076]